bitfinex/quotes_ETHUSD_20241023
["timestamp","ask_amount","ask_price","bid_price","bid_amount"]
[1729646233756,1.68033087,2615.9,2615.5,3.44094]
[1729646234155,1.68033087,2615.9,2615.6,0.7751]
[1729646236799,5.12090087,2615.9,2615.6,0.7751]
[1729646236959,5.12090087,2615.9,2615.4,0.7751]
[1729646236960,5.12097087,2615.8,2615.4,0.7751]
[1729646237155,1.68033087,2615.8,2615.4,5.01897868]
[1729646237789,5.90610087,2615.9,2615.4,5.09544073]
[1729646238495,5.90610087,2615.9,2615.4,8.53651073]
[1729646238804,5.90610087,2615.9,2615.5,3.44101]
[1729646238992,3.44057,2615.9,2615.5,3.44101]
[1729646239215,1.68033087,2616.0,2615.5,3.44101]
[1729646239521,4.22553,2616.1,2615.6,3.44088]
[1729646239522,1.68033087,2616.1,2615.6,3.44088]
[1729646239813,3.44025,2616.1,2615.7,4.22675]
[1729646240022,5.12058087,2616.1,2615.7,0.786]
[1729646240579,5.12058087,2616.1,2615.7,4.22672]
[1729646240780,1.68033087,2616.1,2615.7,4.22672]
[1729646241803,5.12057087,2616.1,2615.7,4.22672]
[1729646244211,1.68033087,2616.0,2615.7,0.786]
[1729646244410,5.12070087,2616.0,2615.7,0.786]
[1729646245727,1.68033087,2616.0,2615.7,0.786]
[1729646247335,1.68033087,2616.0,2615.7,1.58876868]
[1729646248403,1.68033087,2616.0,2615.7,0.786]
[1729646249245,5.12071087,2616.0,2615.7,0.786]
[1729646249738,1.68033087,2616.0,2615.7,0.786]
[1729646253455,5.12071087,2616.0,2615.7,0.786]
[1729646254309,1.68033087,2616.0,2615.7,0.786]
[1729646255709,5.12073087,2616.0,2615.7,0.786]
[1729646258847,1.68033087,2616.0,2615.7,0.786]
[1729646259322,5.12071087,2616.0,2615.7,0.786]
[1729646260256,1.68033087,2616.0,2615.7,0.786]
[1729646261410,5.12070087,2616.0,2615.7,0.786]
[1729646263397,5.12070087,2616.0,2615.7,1.58876868]
[1729646264062,1.68033087,2615.9,2615.7,0.786]
[1729646264506,1.68033087,2615.9,2615.7,1.58876868]
[1729646265708,1.68033087,2615.9,2615.7,0.786]
[1729646265867,1.68033087,2615.9,2615.7,1.58876868]
[1729646268807,1.68033087,2615.9,2615.7,0.80276868]
[1729646269008,1.68033087,2615.8,2615.7,0.80276868]
[1729646269307,1.68033087,2615.8,2615.6,0.80276868]
[1729646269308,5.12096087,2615.8,2615.6,0.80276868]
[1729646270684,3.44063,2615.8,2615.6,0.80276868]
[1729646274414,3.44063,2615.8,2615.7,0.80276868]
[1729646274790,1.68033087,2615.9,2615.7,0.80276868]
[1729646275116,5.12083087,2615.9,2615.7,0.80276868]
[1729646278279,5.12083087,2615.9,2615.8,0.80276868]
[1729646279315,3.4405,2615.9,2615.8,0.80276868]
[1729646279616,4.26947,2616.0,2615.8,0.80276868]
[1729646280276,4.19321,2616.2,2615.8,0.80276868]
[1729646280510,3.43985,2616.4,2615.9,4.24323868]
[1729646280707,3.43985,2616.4,2616.1,0.80276868]
[1729646281180,4.19231,2616.9,2616.3,3.43991]
[1729646281306,5.11966087,2616.8,2616.4,0.80276868]
[1729646281652,5.11982087,2616.7,2616.4,0.80276868]
[1729646282148,5.11979087,2616.7,2616.4,0.80276868]
[1729646283252,5.11979087,2616.7,2616.3,0.80276868]
[1729646283453,2.43333087,2616.9,2616.4,5.03382868]
[1729646283653,1.68033087,2616.8,2616.4,4.23106]
[1729646284181,1.68033087,2616.8,2616.4,5.03382868]
[1729646285034,5.11966087,2616.8,2616.4,4.23106]
[1729646285405,5.11966087,2616.8,2616.4,0.7913]
[1729646286032,1.68033087,2616.7,2616.4,0.7913]
[1729646286234,1.68033087,2616.5,2616.4,0.7913]
[1729646286447,1.68033087,2616.5,2616.2,1.60836868]
[1729646286619,1.68033087,2616.4,2616.2,0.8056]
[1729646286945,1.68033087,2616.5,2616.2,1.60836868]
[1729646287433,5.11991087,2616.6,2616.2,1.60836868]
[1729646288815,5.11991087,2616.6,2616.2,0.8056]
[1729646289510,5.11991087,2616.6,2616.2,4.24568]
[1729646290051,5.11991087,2616.6,2616.2,0.8056]
[1729646291447,1.68033087,2616.4,2616.2,0.8056]
[1729646291656,5.12006087,2616.5,2616.2,0.8056]
[1729646292033,1.68033087,2616.4,2616.2,0.8056]
[1729646292432,5.12006087,2616.5,2616.2,0.8056]
[1729646293769,1.68033087,2616.4,2616.2,0.8056]
[1729646294234,5.12006087,2616.5,2616.2,0.8056]
[1729646295503,1.68033087,2616.4,2616.2,0.8056]
[1729646295683,1.68033087,2616.4,2616.1,4.24583]
[1729646295981,1.68033087,2616.5,2616.1,4.24583]
[1729646296958,1.68033087,2616.5,2616.1,7.686]
[1729646297560,1.68033087,2616.5,2616.2,3.44009]
[1729646297779,4.19886,2616.7,2616.2,3.44009]
[1729646297780,1.68033087,2616.6,2616.2,3.44009]
[1729646301307,3.43927,2616.9,2616.4,3.43982]
[1729646301515,3.43902,2617.1,2616.5,3.43962]
[1729646301828,1.68033087,2617.0,2616.7,0.8212]
[1729646302611,5.11940087,2617.0,2616.7,0.8212]
[1729646303508,1.68033087,2617.0,2616.7,0.8212]
[1729646304284,0.7853,2617.5,2617.0,0.8212]
[1729646304490,4.22356,2617.7,2617.2,3.43878]
[1729646304731,5.90389087,2617.7,2617.3,0.8212]
[1729646304902,1.68033087,2617.6,2617.3,0.8212]
[1729646305422,3.43788,2617.9,2617.3,0.8212]
[1729646305423,0.7853,2617.9,2617.5,3.43832]
[1729646305725,3.43768,2618.1,2617.7,0.8212]
[1729646305726,4.22298,2618.1,2617.7,0.8212]
[1729646305927,1.68033087,2618.2,2617.7,4.25932]
[1729646305928,3.43748,2618.2,2617.7,4.25932]
[1729646306227,5.11781087,2618.2,2617.7,4.25932]
[1729646306391,4.22248,2618.5,2617.9,3.43779]
[1729646306583,1.68033087,2618.4,2617.9,3.43779]
[1729646307000,3.43722,2618.4,2617.9,3.43779]
[1729646307230,1.68033087,2618.3,2617.9,3.43779]
[1729646307624,1.68033087,2618.3,2617.8,3.43791]
[1729646307939,1.68033087,2618.2,2617.7,4.25926]
[1729646308234,1.68033087,2618.2,2617.8,3.43798]
[1729646308946,1.68033087,2618.2,2617.7,0.8212]
[1729646308947,5.11782087,2618.2,2617.7,0.8212]
[1729646309601,5.11782087,2618.2,2617.7,4.25925]
[1729646310038,1.68033087,2618.3,2617.8,3.43797]
[1729646310561,5.11770087,2618.3,2617.8,3.43797]
[1729646310708,5.11770087,2618.3,2617.8,3.43792]
[1729646310909,5.11770087,2618.3,2617.8,6.87585]
[1729646311101,3.43723,2618.4,2617.9,3.43786]
[1729646311324,5.90271087,2618.5,2618.0,3.43764]
[1729646311639,1.68033087,2618.4,2618.0,3.43764]
[1729646311861,5.90271087,2618.5,2618.0,3.43764]
[1729646312028,1.68033087,2618.4,2618.0,3.43764]
[1729646312230,9.33988087,2618.5,2618.0,3.43764]
[1729646312569,1.68033087,2618.4,2618.0,6.87529]
[1729646312777,1.68033087,2618.4,2618.0,3.43764]
[1729646313957,5.11741087,2618.5,2618.0,3.43764]
[1729646314153,5.11741087,2618.5,2618.1,0.8212]
[1729646314470,1.68033087,2618.4,2618.1,0.8212]
[1729646316247,8.55460087,2618.5,2618.1,0.8212]
[1729646316855,5.11741087,2618.5,2618.1,0.8212]
[1729646318275,8.55461087,2618.5,2618.1,0.8212]
[1729646319146,5.11741087,2618.5,2618.1,0.8212]
[1729646319474,3.43723,2618.4,2618.1,0.8212]
[1729646320272,5.11741087,2618.5,2618.1,0.8212]
[1729646320637,8.55457087,2618.5,2618.1,0.8212]
[1729646321070,3.43721,2618.4,2618.1,0.8212]
[1729646328312,3.43659,2618.9,2618.4,3.43711]
[1729646328594,6.87305,2619.0,2618.5,4.24812]
[1729646328795,3.43651,2619.0,2618.6,3.43693]
[1729646328978,5.11684087,2619.0,2618.5,4.32447409]
[1729646329170,5.11684087,2619.0,2618.5,0.88747409]
[1729646329496,5.11684087,2619.0,2618.6,3.43693]
[1729646329869,3.43657,2618.9,2618.5,0.88747409]
[1729646330074,5.11690087,2618.9,2618.5,4.32453409]
[1729646330681,1.68033087,2619.0,2618.5,4.32453409]
[1729646330890,1.68033087,2619.0,2618.6,3.43694]
[1729646331408,23.0457,2619.6,2618.9,0.8161]
[1729646331409,3.436,2619.4,2618.9,0.8161]
[1729646331560,1.68033087,2619.2,2618.9,0.8161]
[1729646331914,1.68033087,2619.1,2618.9,0.8161]
[1729646332589,5.11656087,2619.2,2618.9,0.8161]
[1729646333378,6.87197,2619.4,2618.9,4.25262]
[1729646333600,5.11643087,2619.3,2618.9,0.8161]
[1729646335007,1.68033087,2619.2,2618.9,0.8161]
[1729646335513,5.11670087,2619.1,2618.9,0.8161]
[1729646336177,1.68033087,2619.1,2618.9,0.8161]
[1729646338816,5.11664087,2619.1,2618.9,0.8161]
[1729646339490,5.11664087,2619.1,2618.7,0.8161]
[1729646339814,5.11664087,2619.1,2618.7,1.58511]
[1729646340607,1.68033087,2619.1,2618.7,5.02192]
[1729646341714,5.11664087,2619.1,2618.7,5.02192]
[1729646341937,1.68033087,2619.1,2618.7,5.02192]
[1729646343826,5.11662087,2619.1,2618.7,1.58511]
[1729646344206,1.68033087,2619.1,2618.7,1.58511]
[1729646344534,1.68033087,2619.1,2618.8,0.2379217]
[1729646344711,5.11668087,2619.1,2618.8,0.2379217]
[1729646347232,5.11668087,2619.1,2618.8,1.03202868]
[1729646348806,1.68033087,2619.1,2618.8,0.79410698]
[1729646349112,1.68033087,2619.1,2618.7,1.19116047]
[1729646349113,3.43655,2618.9,2618.7,1.19116047]
[1729646349314,3.43655,2618.9,2618.8,0.79766454]
[1729646349522,5.11688087,2618.9,2618.8,0.79766473]
[1729646349719,1.68033087,2618.9,2618.8,0.79766473]
[1729646350237,1.68033087,2618.9,2618.8,1.19116047]
[1729646350442,5.88428087,2618.9,2618.8,1.19116047]
[1729646350729,5.88428087,2618.9,2618.7,0.79836208]
[1729646350730,4.20396,2618.9,2618.7,0.79836208]
[1729646350901,5.88429087,2618.9,2618.7,0.79836208]
[1729646351603,3.43668,2618.8,2618.7,0.79836208]
[1729646352057,5.88429087,2618.9,2618.6,0.79836208]
[1729646352266,5.88429087,2618.9,2618.7,0.79836208]
[1729646352977,9.32091087,2618.9,2618.7,0.79836208]
[1729646353136,5.88429087,2618.9,2618.6,0.79836208]
[1729646353472,5.11714087,2618.7,2618.6,0.79836208]
[1729646353674,1.68033087,2618.7,2618.6,0.79836208]
[1729646354038,3.43671,2618.8,2618.6,0.79836208]
[1729646354444,5.11704087,2618.8,2618.6,0.79836208]
[1729646355083,5.11704087,2618.8,2618.5,0.79836208]
[1729646355442,1.68033087,2618.8,2618.5,0.79836208]
[1729646356883,4.20396,2618.9,2618.5,5.20362433]
[1729646357246,0.7674,2618.9,2618.6,3.43695]
[1729646357447,1.68033087,2619.0,2618.6,3.43695]
[1729646357660,5.11650087,2619.2,2618.7,3.43672]
[1729646357889,3.43617,2619.2,2618.7,3.43672]
[1729646358090,3.43579,2619.5,2618.8,3.43668]
[1729646358383,5.11624087,2619.4,2619.0,4.25451]
[1729646358593,1.68033087,2619.3,2619.0,4.25451]
[1729646358892,3.43591,2619.4,2619.0,4.25451]
[1729646358893,5.11624087,2619.4,2619.0,4.25451]
[1729646359604,1.68033087,2619.3,2619.0,4.25451]
[1729646359973,1.68033087,2619.2,2619.0,0.8181]
[1729646360311,1.68033087,2619.3,2619.0,0.8181]
[1729646361861,1.68033087,2619.3,2619.0,4.25451]
[1729646362062,8.55221087,2619.4,2619.0,0.8181]
[1729646362412,1.68033087,2619.3,2619.0,0.8181]
[1729646366516,3.43591,2619.4,2619.0,0.8181]
[1729646366711,3.43591,2619.4,2619.0,1.587231]
[1729646366909,3.43591,2619.4,2619.0,0.8181]
[1729646367656,6.87193,2619.4,2619.0,0.8181]
[1729646367850,1.68033087,2619.3,2619.0,0.8181]
[1729646368556,3.43591,2619.4,2619.0,0.8181]
[1729646368759,3.43574,2619.6,2619.1,3.43619]
[1729646368958,3.43574,2619.6,2619.2,5.02213]
[1729646369127,3.43571,2619.6,2619.2,1.58597]
[1729646370040,5.11604087,2619.6,2619.2,1.58597]
[1729646370248,3.43579,2619.5,2619.2,1.58597]
[1729646370464,3.43571,2619.6,2619.2,5.02212]
[1729646370622,5.11604087,2619.6,2619.3,0.845832]
[1729646372726,1.68033087,2619.6,2619.3,0.845832]
[1729646373072,5.11597087,2619.6,2619.3,0.845832]
[1729646373619,3.43544,2619.8,2619.3,0.845832]
[1729646373620,3.43551,2619.7,2619.3,0.845832]
[1729646373826,5.11597087,2619.6,2619.3,0.845832]
[1729646374026,1.68033087,2619.5,2619.3,0.845832]
[1729646374322,3.43564,2619.6,2619.3,1.64419408]
[1729646374323,5.11597087,2619.6,2619.3,1.64419408]
[1729646376468,5.11597087,2619.6,2619.3,0.845832]
[1729646379410,5.11597087,2619.6,2619.2,1.61526208]
[1729646382987,5.11597087,2619.6,2619.2,0.8169]
[1729646383186,5.11597087,2619.6,2619.2,1.61526208]
[1729646385426,5.11597087,2619.6,2619.2,0.8169]
[1729646386187,5.11597087,2619.6,2619.2,1.61526208]
[1729646386387,5.11597087,2619.6,2619.2,2.58316433]
[1729646387013,1.68033087,2619.7,2619.2,6.01931433]
[1729646387324,3.43564,2619.6,2619.2,5.22095225]
[1729646387511,1.68033087,2619.7,2619.2,6.01931433]
[1729646387724,1.68033087,2619.7,2619.3,3.43601]
[1729646387904,5.11585087,2619.7,2619.2,6.01924433]
[1729646388429,1.68033087,2619.7,2619.3,4.15697048]
[1729646390512,5.11584087,2619.7,2619.3,4.15697048]
[1729646391993,5.11584087,2619.7,2619.3,0.72104048]
[1729646393128,1.68033087,2619.7,2619.3,4.15706048]
[1729646393331,1.68033087,2619.7,2619.3,4.15700048]
[1729646393633,0.7647,2619.9,2619.5,3.43566]
[1729646393849,0.7647,2619.9,2619.5,4.26826]
[1729646394141,0.03573272,2619.8,2619.5,5.06662208]
[1729646394311,0.03573272,2619.8,2619.6,0.90872733]
[1729646394508,4.19995,2619.9,2619.6,0.90872733]
[1729646394721,0.03573106,2619.7,2619.5,5.06662208]
[1729646395035,0.0357294,2619.6,2619.5,5.06662208]
[1729646395237,0.7647,2619.9,2619.5,5.06662208]
[1729646395442,0.03573272,2619.8,2619.5,5.06662208]
[1729646395726,0.03573272,2619.8,2619.5,0.8326]
[1729646395937,0.03573272,2619.8,2619.5,1.68491046]
[1729646398398,0.03573272,2619.8,2619.5,5.12061046]
[1729646398905,0.03573272,2619.8,2619.5,5.91897254]
[1729646399236,3.43474,2620.3,2619.7,6.74679295]
[1729646399420,3.43495,2620.2,2619.8,0.80142967]
[1729646399640,0.03446402,2620.2,2619.8,4.23679967]
[1729646399795,5.11507087,2620.3,2619.8,4.23679967]
[1729646399998,0.04165543,2620.2,2619.8,4.23679967]
[1729646400301,5.11507087,2620.3,2619.8,4.23679967]
[1729646400521,0.03354233,2620.1,2619.8,5.03597309]
[1729646400732,0.03354388,2620.2,2619.9,0.93040031]
[1729646400943,0.03354078,2620.0,2619.9,0.93040031]
[1729646401413,5.11507087,2620.3,2619.9,0.93040031]
[1729646401744,0.03354388,2620.2,2619.9,0.93040031]
[1729646402108,5.11507087,2620.3,2619.9,0.93040031]
[1729646402302,0.03354233,2620.1,2619.9,0.93040031]
[1729646402637,0.03354078,2620.0,2619.9,0.93040031]
[1729646402947,1.68033087,2620.2,2619.9,1.72957373]
[1729646403152,1.68033087,2620.2,2620.0,0.51649337]
[1729646403453,5.11507087,2620.3,2620.0,0.51649337]
[1729646403928,5.92532087,2620.4,2620.0,0.51649337]
[1729646404136,3.43452,2620.5,2620.0,4.86047532]
[1729646404311,3.43452,2620.5,2620.1,0.82703799]
[1729646404527,5.11485087,2620.5,2620.1,0.82703799]
[1729646404901,3.43461,2620.4,2620.1,0.82703799]
[1729646405140,5.11485087,2620.5,2620.1,0.82703799]
[1729646405347,3.43452,2620.5,2620.1,4.26200799]
[1729646405544,2.49073087,2620.6,2620.2,4.34708493]
[1729646405748,2.49073087,2620.6,2620.2,3.43484]
[1729646405946,2.49073087,2620.6,2620.1,0.82703799]
[1729646406147,5.11480087,2620.5,2620.1,0.82703799]
[1729646406609,1.68033087,2620.4,2620.1,0.82703799]
[1729646406808,5.11499087,2620.4,2620.0,1.34909337]
[1729646407047,3.43466,2620.4,2620.0,1.34909337]
[1729646407832,8.54933087,2620.5,2620.0,4.78416337]
[1729646408033,3.43462,2620.4,2620.0,1.34909337]
[1729646408347,5.11495087,2620.4,2620.0,1.34909337]
[1729646408511,3.43462,2620.4,2620.1,0.55834268]
[1729646408714,0.03367415,2620.3,2620.1,0.55834268]
[1729646409017,3.46840415,2620.3,2620.1,0.55834268]
[1729646409652,3.48463025,2620.3,2620.1,0.55834268]
[1729646412763,0.04990025,2620.3,2620.1,0.55834268]
[1729646412993,0.04990025,2620.3,2620.2,0.49023683]
[1729646413193,0.04990025,2620.3,2620.2,0.84812255]
[1729646413395,0.04990025,2620.3,2620.2,4.28297255]
[1729646413701,0.04990025,2620.3,2620.2,4.20665]
[1729646414522,0.04990025,2620.3,2620.2,0.7718]
[1729646414802,0.04990025,2620.3,2620.2,5.96329972]
[1729646415010,0.0162261,2620.3,2620.2,11.50715877]
[1729646415209,0.0162261,2620.3,2620.2,11.82282697]
[1729646415378,0.0162261,2620.3,2620.2,10.6316665]
[1729646415703,0.0162261,2620.3,2620.2,11.82282697]
[1729646418286,0.0162261,2620.3,2620.2,11.68783298]
[1729646418884,0.0162261,2620.3,2620.2,10.00750211]
[1729646419297,0.0162261,2620.3,2620.2,11.68783298]
[1729646419823,0.0162261,2620.3,2620.2,11.13783298]
[1729646421017,0.0162261,2620.3,2620.2,9.19750211]
[1729646421227,0.0162261,2620.3,2620.2,10.0816665]
[1729646421721,0.0162261,2620.3,2620.2,8.40133563]
[1729646422013,0.0162261,2620.3,2620.2,5.40133563]
[1729646429393,0.0162261,2620.3,2620.2,7.0816665]
[1729646431658,0.0162261,2620.3,2620.2,7.15798273]
[1729646431939,0.0162261,2620.3,2620.2,5.40133563]
[1729646433253,0.0162261,2620.3,2620.1,4.78947916]
[1729646433410,0.0162261,2620.3,2620.2,3.43485]
[1729646433805,0.0162261,2620.3,2620.1,0.55834268]
[1729646434557,0.0162261,2620.3,2620.1,1.35450916]
[1729646435916,1.69655697,2620.3,2620.1,1.35450916]
[1729646436121,0.0162261,2620.3,2620.1,0.55834268]
[1729646437849,1.69655697,2620.3,2620.1,0.55834268]
[1729646438236,0.0162261,2620.3,2620.1,0.55834268]
[1729646439316,0.0162261,2620.3,2620.1,1.35450916]
[1729646439517,1.69655697,2620.3,2620.1,1.35450916]
[1729646439717,0.0162261,2620.3,2620.1,1.35450916]
[1729646441644,1.69655697,2620.3,2620.1,1.35450916]
[1729646441829,0.0162261,2620.3,2620.1,1.35450916]
[1729646442036,1.69655697,2620.3,2620.1,0.79616648]
[1729646442365,1.68033087,2620.2,2619.9,0.79616648]
[1729646442528,5.13127697,2620.3,2620.0,0.79616648]
[1729646443053,5.13127697,2620.3,2619.9,0.79616648]
[1729646443515,1.68033087,2620.2,2620.0,0.79616648]
[1729646444155,1.68033087,2620.2,2619.9,0.79616648]
[1729646444156,1.69655697,2620.2,2619.9,0.79616648]
[1729646444458,1.69655697,2620.2,2620.0,0.79616648]
[1729646444763,1.68033087,2620.1,2619.9,0.79616648]
[1729646445261,1.68033087,2620.1,2620.0,0.79616648]
[1729646445262,1.69655697,2620.1,2620.0,0.79616648]
[1729646445473,0.0162261,2620.1,2620.0,0.79616648]
[1729646445919,0.0162261,2620.1,2619.9,0.79616648]
[1729646446141,0.0162261,2620.1,2620.0,0.79616648]
[1729646446536,1.69655697,2620.1,2620.0,0.79616648]
[1729646446753,1.69655697,2620.1,2619.9,0.79616648]
[1729646447071,5.13156697,2620.1,2619.9,0.79616648]
[1729646448247,1.69655697,2620.1,2619.9,0.79616648]
[1729646453356,1.69655697,2620.1,2619.9,0.75226648]
[1729646462494,1.69655697,2620.1,2619.8,0.55579406]
[1729646463500,1.69655697,2620.1,2619.9,0.79882115]
[1729646464177,0.0162261,2620.1,2619.9,0.79882115]
[1729646464996,0.0162261,2620.1,2620.0,4.27474217]
[1729646465314,0.0162261,2620.1,2620.0,5.07356332]
[1729646465456,0.0162261,2620.1,2620.0,5.86295613]
[1729646465660,0.0162261,2620.1,2620.0,6.27196915]
[1729646467460,0.0162261,2620.1,2620.0,6.2714359]
[1729646467695,0.0162261,2620.1,2620.0,7.77362031]
[1729646467896,0.0162261,2620.1,2620.0,9.37761901]
[1729646468311,0.0162261,2620.1,2620.0,7.69728814]
[1729646472082,0.0162261,2620.1,2620.0,9.92761901]
[1729646472279,0.0162261,2620.1,2620.0,8.24739005]
[1729646473184,0.0162261,2620.1,2620.0,8.50739005]
[1729646474730,0.0162261,2620.1,2620.0,10.18772092]
[1729646475578,0.0162261,2620.1,2620.0,10.18791608]
[1729646475778,0.0162261,2620.1,2620.0,11.19092528]
[1729646476006,0.0162261,2620.1,2620.0,13.97898005]
[1729646476340,0.1256005,2621.2,2620.7,0.7633]
[1729646476633,0.1256005,2621.2,2621.1,5.87730087]
[1729646476851,0.1256005,2621.2,2621.1,7.08773982]
[1729646477119,0.1256005,2621.2,2621.1,10.08773982]
[1729646477341,0.1256005,2621.2,2621.1,10.63773982]
[1729646477794,3.43148,2622.8,2622.2,3.43211]
[1729646477994,0.01,2623.7,2622.4,3.43189]
[1729646477995,1.68033087,2622.9,2622.4,3.43189]
[1729646478330,3.43079,2623.3,2622.6,4.2273409]
[1729646478624,1.68033087,2623.1,2622.6,3.43157]
[1729646478923,1.68033087,2623.2,2622.6,3.43157]
[1729646479085,3.43079,2623.3,2622.6,3.43157]
[1729646479086,1.68033087,2623.1,2622.6,3.43157]
[1729646479283,3.5558305,2623.8,2623.1,3.43095]
[1729646479515,5.11087087,2623.5,2623.0,0.7633]
[1729646479717,3.43031,2623.7,2623.0,0.7633]
[1729646479953,3.43031,2623.7,2623.0,4.19437]
[1729646480109,6.8607,2623.7,2623.0,4.19437]
[1729646480309,3.43031,2623.7,2623.0,4.19437]
[1729646480557,6.86066,2623.7,2623.0,4.19437]
[1729646480709,6.86068,2623.7,2623.0,4.19437]
[1729646480914,3.43031,2623.7,2623.0,4.19437]
[1729646481115,3.43041,2623.6,2623.0,4.19437]
[1729646481424,3.40240271,2623.7,2623.0,0.7633]
[1729646481628,6.86124,2623.5,2623.0,0.7633]
[1729646481830,3.43061,2623.5,2623.0,0.7633]
[1729646482256,3.43067,2623.4,2623.0,0.7633]
[1729646482561,3.43049,2623.6,2623.1,0.07623529]
[1729646482916,6.86099,2623.6,2623.1,0.07623529]
[1729646483246,3.43055,2623.5,2623.1,0.07623529]
[1729646483843,3.43049,2623.6,2623.1,0.07623529]
[1729646484038,3.43059,2623.5,2623.1,0.07623529]
[1729646484551,3.43049,2623.6,2623.0,0.7633]
[1729646484715,3.43066,2623.4,2623.0,0.7633]
[1729646485258,3.43066,2623.4,2623.1,0.07623533]
[1729646485458,0.8937005,2623.8,2623.1,4.15806553]
[1729646485761,4.3239205,2623.8,2623.2,3.43092]
[1729646485913,7.7541805,2623.8,2623.1,4.15806553]
[1729646486116,3.43028,2623.7,2623.1,4.15806553]
[1729646486347,3.43028,2623.7,2623.1,7.58903553]
[1729646486550,3.43028,2623.7,2623.1,4.15804553]
[1729646486927,4.3239205,2623.8,2623.1,4.15804553]
[1729646486928,0.1256005,2623.8,2623.5,0.56]
[1729646487120,0.1256005,2623.8,2623.7,3.43027]
[1729646487370,0.1256005,2623.8,2623.7,6.98027]
[1729646487606,3.42978,2624.1,2623.7,3.0]
[1729646487811,3.42978,2624.1,2623.5,3.56]
[1729646488099,3.42972,2624.2,2623.5,4.122664]
[1729646488100,3.42988,2624.0,2623.5,4.122664]
[1729646488399,3.42917,2624.6,2623.8,3.43003]
[1729646488601,3.42917,2624.6,2624.0,3.4298]
[1729646488766,3.42917,2624.6,2623.9,3.42988]
[1729646488767,3.42938,2624.4,2623.9,3.42988]
[1729646488962,3.42917,2624.6,2623.9,4.251479]
[1729646489205,3.42922,2624.5,2623.9,4.251479]
[1729646489508,3.42917,2624.6,2623.9,4.251479]
[1729646489673,3.42924,2624.5,2623.9,4.251479]
[1729646490207,3.42922,2624.5,2624.0,3.42979]
[1729646490522,3.42936,2624.4,2623.9,0.821559]
[1729646490677,4.19681,2624.9,2624.1,1.3555]
[1729646490878,4.403479,2625.0,2624.3,3.42947]
[1729646491298,4.403479,2625.0,2624.1,4.78518]
[1729646491466,4.403479,2625.0,2624.2,0.55533169]
[1729646491467,3.42883,2624.8,2624.2,0.55533169]
[1729646491669,3.4291,2624.6,2624.1,0.7955]
[1729646492006,3.42936,2624.4,2624.1,0.7955]
[1729646492206,6.85829,2624.6,2624.1,0.7955]
[1729646492509,3.42923,2624.5,2624.1,0.7955]
[1729646492699,3.42946,2624.4,2623.8,0.7955]
[1729646493009,3.42956,2624.3,2623.8,1.25462709]
[1729646493369,3.42962,2624.2,2623.8,1.25462709]
[1729646494507,3.42977,2624.1,2623.8,1.25462709]
[1729646494709,3.42977,2624.1,2623.4,4.63421635]
[1729646494710,3.42948,2624.3,2623.6,3.43032]
[1729646494936,3.42948,2624.3,2624.0,0.7509]
[1729646495082,0.03361001,2624.2,2624.0,0.7509]
[1729646495277,3.42948,2624.3,2624.0,0.7509]
[1729646495512,0.0357073,2624.2,2624.0,0.7509]
[1729646495702,0.7538,2624.7,2623.4,6.43058]
[1729646495703,3.42982,2624.1,2623.5,0.7509]
[1729646495900,3.43001,2623.9,2623.5,0.7509]
[1729646496098,0.03570112,2623.8,2623.5,0.7509]
[1729646496300,3.42982,2624.1,2623.5,0.7509]
[1729646496466,3.43011,2623.9,2623.5,0.7509]
[1729646496668,0.03570112,2623.8,2623.5,0.7509]
[1729646497919,3.46585112,2623.8,2623.5,0.7509]
[1729646498099,3.46585112,2623.8,2623.3,3.0]
[1729646498100,3.46585112,2623.8,2623.3,0.7509]
[1729646498269,3.43028,2623.7,2623.3,0.7509]
[1729646498681,0.03566262,2623.6,2623.3,0.7509]
[1729646499954,3.43017,2623.8,2623.3,0.7509]
[1729646500085,0.0355599,2623.5,2623.3,0.7509]
[1729646500382,3.43017,2623.8,2623.3,1.58844564]
[1729646500583,0.03555835,2623.4,2623.3,0.7509]
[1729646500784,7.58610271,2624.0,2623.0,0.7509]
[1729646500979,3.43053,2623.5,2623.0,4.18208]
[1729646501394,0.03437311,2623.4,2623.0,4.18208]
[1729646502002,0.03437311,2623.4,2623.0,0.7509]
[1729646503328,0.03437311,2623.4,2623.0,4.93161263]
[1729646503834,0.03437311,2623.4,2623.1,3.43102]
[1729646504148,3.40240271,2623.8,2623.0,0.7509]
[1729646504149,4.15620271,2623.5,2623.0,0.7509]
[1729646504344,4.15620271,2623.5,2622.7,4.94455635]
[1729646504345,3.43087,2623.3,2622.7,4.94455635]
[1729646504643,4.15620271,2623.5,2622.7,0.99677082]
[1729646504644,3.43108,2623.1,2622.7,0.99677082]
[1729646504795,0.03382598,2623.2,2622.8,0.07624502]
[1729646504993,0.03378379,2623.0,2622.8,0.07624502]
[1729646505230,6.86176,2623.3,2622.8,0.07624502]
[1729646505539,0.03381857,2623.2,2622.8,0.07624502]
[1729646505742,3.46473857,2623.2,2622.8,0.07624502]
[1729646506035,3.46477367,2623.1,2622.7,5.19042717]
[1729646506542,3.46477367,2623.1,2622.8,0.07624533]
[1729646506712,3.46477367,2623.1,2622.8,1.19365635]
[1729646506895,0.03371367,2623.1,2622.8,0.07624534]
[1729646507397,0.03371367,2623.1,2622.8,0.85523865]
[1729646507602,3.43082,2623.3,2622.8,0.85523865]
[1729646507842,0.03374463,2623.0,2622.8,0.85523865]
[1729646508000,6.86169,2623.3,2622.8,0.85523865]
[1729646508201,3.43082,2623.3,2622.8,0.85523865]
[1729646508641,0.03370723,2623.2,2622.8,0.85523865]
[1729646508815,3.43082,2623.3,2622.8,0.85523865]
[1729646509021,0.03370569,2623.1,2622.8,0.85523865]
[1729646509342,0.03370723,2623.2,2622.8,0.85523865]
[1729646509517,3.43082,2623.3,2622.8,2.048895]
[1729646510144,3.46463723,2623.2,2622.8,1.19365635]
[1729646510367,0.03370723,2623.2,2622.8,1.19365635]
[1729646510530,3.43082,2623.3,2622.9,1.19365635]
[1729646510726,0.03370723,2623.2,2622.9,1.19365635]
[1729646510930,3.43082,2623.3,2622.9,1.19365635]
[1729646511228,0.8227,2624.3,2623.3,0.7766]
[1729646511430,0.8227,2624.3,2623.8,3.43005]
[1729646511653,3.42912,2624.6,2623.9,3.43]
[1729646511654,0.8227,2624.5,2623.9,3.43]
[1729646511828,4.25195,2624.5,2623.9,3.43]
[1729646512238,4.25195,2624.5,2623.9,4.60581436]
[1729646512451,0.8227,2624.5,2624.0,3.50607645]
[1729646513169,0.8227,2624.5,2624.0,4.68189081]